bitfinex-derivatives/quotes_ETHF0:USTF0_20250624
["timestamp","ask_amount","ask_price","bid_price","bid_amount"]
[1750771850242,0.82815,2413.8,2413.7,0.82814]
[1750771850538,0.82812,2413.9,2413.8,0.82811]
[1750771850731,0.82812,2413.9,2413.6,7.772]
[1750771850732,1.3984,2413.9,2413.6,7.772]
[1750771850933,4.03596,2413.7,2413.6,0.0637515]
[1750771851338,10.43436,2413.7,2413.6,0.0637515]
[1750771854841,2.07073,2413.4,2412.8,0.9127]
[1750771855043,0.82834,2413.2,2413.1,0.82836]
[1750771855236,5.5322,2413.3,2412.8,2.98384]
[1750771855237,1.3359,2413.3,2413.2,0.82834]
[1750771855437,0.82837,2413.1,2413.0,4.03618]
[1750771855640,0.82837,2413.1,2413.0,3.2078]
[1750771855940,0.82847,2412.8,2412.7,3.2078]
[1750771856138,0.82847,2412.8,2412.2,28.1563]
[1750771856139,6.89640716,2412.8,2412.0,3.2078]
[1750771856329,0.82858,2412.5,2412.4,0.82859]
[1750771856532,0.82858,2412.5,2412.0,5.27966]
[1750771856832,0.82858,2412.5,2412.3,0.82862]
[1750771857034,0.82863,2412.4,2412.0,4.5533]
[1750771857230,9.5956985,2412.7,2412.3,0.82864]
[1750771857440,9.5956985,2412.7,2412.1,2.07179]
[1750771857741,0.82856,2412.6,2412.2,7.773]
[1750771857942,1.3879,2412.6,2412.5,0.82858]
[1750771858143,0.82863,2412.4,2412.3,0.82864]
[1750771858336,8.4592785,2412.6,2412.0,10.9808]
[1750771858643,8.4592785,2412.6,2411.6,1.8176]
[1750771858644,2.07179,2412.1,2411.6,1.8176]
[1750771858843,2.21665,2412.0,2411.6,1.8176]
[1750771859044,2.21665,2412.0,2411.8,0.8288]
[1750771859237,0.9834,2412.6,2412.2,0.82866]
[1750771859545,2.27513,2412.4,2412.2,0.82866]
[1750771859750,11.55070716,2412.4,2412.0,3.2078]
[1750771860046,16.55070566,2412.4,2411.8,0.8288]
[1750771860248,16.55070566,2412.4,2411.2,2.07253]
[1750771860249,2.07213,2411.8,2411.2,0.82901]
[1750771860538,4.03675,2411.5,2411.3,0.82898]
[1750771860730,3.2787,2411.7,2411.1,2.07265]
[1750771860935,3.2787,2411.7,2410.8,3.2078]
[1750771860936,3.2078,2411.3,2410.8,3.2078]
[1750771861141,3.2078,2411.3,2410.2,7.774]
[1750771861142,3.2078,2411.0,2410.4,3.55495384]
[1750771861442,2.27563,2410.9,2410.8,3.2078]
[1750771861739,0.82901,2411.3,2411.0,0.82907]
[1750771861947,0.82895,2411.5,2411.2,4.03681]
[1750771862133,0.82919,2410.7,2410.6,0.9442]
[1750771862338,0.82919,2410.7,2410.2,3.2078]
[1750771862339,0.82932,2410.4,2410.2,3.2078]
[1750771862538,0.82932,2410.4,2409.7,0.34280104]
[1750771862539,0.8293,2410.4,2409.9,3.2078]
[1750771862735,4.9999985,2410.4,2409.9,3.2078]
[1750771862935,1.3452,2410.3,2409.9,3.2078]
[1750771863248,3.2078,2411.0,2410.2,3.2078]
[1750771863443,3.2078,2411.0,2410.4,3.2078]
[1750771863641,0.8293,2410.4,2410.3,7.87]
[1750771863846,0.8294,2410.1,2410.0,3.2078]
[1750771864234,4.9999985,2410.1,2409.7,8.8555]
[1750771864443,4.9999985,2410.1,2409.7,0.9855]
[1750771864644,1.3452,2410.0,2409.7,8.8555]
[1750771864846,1.3452,2410.0,2409.7,0.9855]
[1750771865045,6.3451985,2410.0,2409.9,0.82947]
[1750771865246,6.3451985,2410.0,2409.5,5.28179]
[1750771865247,0.82949,2409.9,2409.6,7.87]
[1750771865451,1.3151,2409.8,2409.7,0.82953]
[1750771865845,3.2078,2410.7,2409.8,2.07377]
[1750771866138,0.9829,2411.1,2410.7,0.8292]
[1750771866346,1.3151,2411.3,2410.8,11.0808]
[1750771866646,1.3151,2411.3,2410.5,2.07311]
[1750771866647,1.3151,2411.3,2411.2,0.82902]
[1750771866945,4.0365,2412.2,2412.0,0.82874]
[1750771867247,8.2077985,2412.2,2411.6,7.873]
[1750771867446,1.3151,2412.1,2411.7,3.2078]
[1750771867646,1.3151,2412.1,2412.0,0.82875]
[1750771867844,4.1895,2412.5,2412.0,11.0808]
[1750771868041,4.9999985,2412.5,2412.4,0.82861]
[1750771868548,4.9999985,2412.5,2412.1,3.2078]
[1750771868748,1.3483,2412.4,2412.3,0.82864]
[1750771869147,6.3482985,2412.4,2412.0,0.82873]
[1750771869344,0.82873,2412.1,2411.9,8.70077]
[1750771869549,1.3483,2412.0,2411.9,8.70077]
[1750771869847,2.17705,2412.0,2411.9,7.872]
[1750771870153,6.3482985,2412.0,2411.9,8.70078]
[1750771870355,4.9999985,2412.0,2411.9,8.70078]
[1750771870651,0.82867,2412.3,2412.0,0.82874]
[1750771870846,2.0718,2412.1,2411.1,3.2078]
[1750771871048,3.2078,2411.2,2410.6,0.82921]
[1750771871342,2.48551073,2412.0,2410.2,3.2715515]
[1750771871343,0.82933,2410.3,2410.2,1.5e-06]
[1750771871544,19.4681051,2410.3,2408.8,3.2078]
[1750771871749,3.2078,2409.3,2408.8,3.2078]
[1750771871950,3.2078,2409.6,2408.9,1.3234]
[1750771872150,5.41969,2410.2,2409.3,0.82966]
[1750771872342,3.2078,2410.0,2409.4,1.3234]
[1750771872542,3.2078,2409.7,2409.4,1.3234]
[1750771872747,3.2078,2410.0,2409.4,1.3234]
[1750771872943,3.2078,2410.0,2409.4,2.15304]
[1750771873152,3.2078,2410.0,2409.4,1.3234]
[1750771873549,4.5903,2410.2,2409.5,3.2078]
[1750771873756,3.2078,2410.6,2409.9,0.82944]
[1750771873946,3.2078,2410.6,2410.0,16.44880716]
[1750771874150,3.2078,2411.1,2410.2,0.0637515]
[1750771874342,4.03677,2411.4,2410.4,3.2078]
[1750771874542,3.2078,2411.6,2411.0,3.2078]
[1750771874747,3.2078,2411.6,2411.1,9.5702]
[1750771875245,3.2078,2411.6,2411.1,1.3412]
[1750771875444,0.82892,2411.5,2411.2,8.23]
[1750771875841,3.2078,2411.6,2411.1,1.3412]
[1750771876156,3.2078,2411.3,2411.0,8.23]
[1750771876357,0.82902,2411.2,2410.9,8.23]
[1750771876556,3.2078,2411.0,2410.9,8.23]
[1750771876760,3.2078,2411.8,2410.9,11.4378]
[1750771877058,4.6521,2411.8,2411.2,3.2078]
[1750771877357,4.6521,2411.8,2411.3,8.23]
[1750771877358,0.82886,2411.7,2411.3,8.23]
[1750771877560,0.82892,2411.5,2411.3,8.23]
[1750771877858,3.2078,2411.8,2411.3,8.23]
[1750771878050,0.82893,2411.5,2411.3,8.23]
[1750771878248,0.82894,2411.5,2411.3,8.23]
[1750771878447,0.82895,2411.4,2411.3,8.23]
[1750771879654,0.82895,2411.4,2410.6,2.07306]
[1750771879655,3.2078,2411.5,2410.7,3.2078]
[1750771879854,0.82926,2410.5,2410.4,3.2078]
[1750771880250,0.82937,2410.2,2410.1,10.0943]
[1750771880652,0.82936,2410.3,2410.1,15.9237]
[1750771880964,0.82937,2410.2,2410.1,10.0943]
[1750771881165,3.2078,2410.6,2410.2,0.82935]
[1750771881351,1.4499,2410.9,2410.3,3.2078]
[1750771881655,0.82921,2410.7,2410.3,4.03712]
[1750771881855,0.82921,2410.7,2410.4,0.82929]
[1750771882054,0.82921,2410.7,2410.5,8.23]
[1750771882255,0.82923,2410.6,2410.5,8.23]
[1750771882457,5.28049,2411.1,2410.5,8.23]
[1750771882755,0.82916,2410.8,2410.6,3.2078]
[1750771882957,3.2078,2411.2,2410.6,3.2078]
[1750771883155,4.03684,2411.2,2410.8,0.82915]
[1750771883355,4.03684,2411.2,2410.9,0.82912]
[1750771883555,4.03684,2411.2,2410.6,3.2078]
[1750771883556,4.03684,2411.2,2410.8,0.82914]
[1750771883756,0.82906,2411.1,2410.8,0.82914]
[1750771884656,0.82906,2411.1,2410.9,0.82913]
[1750771884851,0.82904,2411.2,2410.9,0.82913]
[1750771885059,0.82903,2411.2,2411.0,0.82908]
[1750771885259,1.4339,2411.4,2410.6,5.28082]
[1750771885260,1.4339,2411.4,2410.7,2.07299]
[1750771885463,2.26285,2411.4,2411.3,0.0637515]
[1750771885663,5.47065,2411.4,2411.3,0.0637515]
[1750771885864,0.82914,2410.9,2410.7,0.82917]
[1750771886161,3.2078,2411.0,2410.6,3.2078]
[1750771886362,0.8291,2411.0,2410.8,0.82914]
[1750771886562,0.8291,2411.0,2410.9,0.82913]
[1750771886763,0.82901,2411.3,2410.9,8.23]
[1750771886965,0.82898,2411.4,2411.2,0.829]
[1750771887163,2.3755,2411.7,2411.4,0.82894]
[1750771887359,3.2078,2411.8,2411.3,8.2947515]
[1750771887559,3.2078,2411.6,2411.3,8.2947515]
[1750771887767,3.2078,2411.6,2411.4,8.231]
[1750771887768,0.82893,2411.5,2411.4,8.231]
[1750771887971,2.26033,2411.5,2411.4,8.231]
[1750771888460,0.82895,2411.4,2411.3,0.0637515]
[1750771889266,0.82895,2411.4,2410.5,3.2078]
[1750771889267,0.82917,2410.8,2410.5,3.2078]
[1750771889571,0.82916,2410.8,2410.5,11.4388]
[1750771889970,0.82916,2410.8,2410.7,0.82917]
[1750771890272,4.03694,2410.9,2410.8,0.82916]
[1750771890572,3.2078,2410.9,2410.8,0.82916]
[1750771892065,3.2078,2410.9,2410.2,5.50023]
[1750771892066,2.07303,2410.7,2409.4,8.23]
[1750771892265,3.2078,2409.8,2409.3,3.2078]
[1750771892464,3.2078,2409.5,2409.1,8.23]
[1750771892770,0.82969,2409.3,2409.1,8.23]
[1750771892969,0.82971,2409.2,2409.1,8.23]
[1750771893466,3.2078,2409.5,2409.1,8.23]
[1750771893970,5.28217,2409.2,2408.5,9.06195]
[1750771894175,3.2078,2408.8,2408.5,9.06195]
[1750771894365,3.2078,2408.8,2408.5,8.232]
[1750771894569,3.2078,2409.1,2408.5,8.232]
[1750771894765,0.82974,2409.2,2408.8,0.82983]
[1750771895077,4.03755,2409.1,2408.8,0.82982]
[1750771895372,3.2078,2409.1,2408.6,8.232]
[1750771895575,0.82983,2408.9,2408.6,0.82992]
[1750771895776,3.2078,2409.1,2408.6,2.0748]
[1750771895977,3.2078,2409.1,2408.9,0.8298]
[1750771896174,4.03756,2409.1,2408.5,3.2078]
[1750771896367,4.03756,2409.1,2408.6,8.234]
[1750771896669,3.2078,2409.1,2409.0,0.82978]
[1750771896870,3.2078,2409.1,2408.9,0.82979]
[1750771897062,3.2078,2409.1,2409.0,0.82978]
[1750771897270,3.2078,2409.4,2409.1,0.82973]
[1750771897463,3.2078,2409.4,2409.3,0.82968]
[1750771897670,3.2078,2409.4,2409.1,0.0637515]
[1750771897870,0.82971,2409.2,2409.1,0.0637515]
[1750771898268,5.82971,2409.2,2409.1,0.0637515]
[1750771898470,11.4418,2409.4,2408.7,0.82988]
[1750771898471,3.2078,2409.4,2408.7,0.82988]
[1750771898668,3.2078,2409.4,2409.1,0.0637515]
[1750771898869,3.2078,2409.4,2409.3,0.82968]
[1750771899170,3.2078,2409.4,2409.2,0.82969]
[1750771899477,4.03745,2409.4,2409.1,0.0637515]
[1750771899669,0.82971,2409.2,2409.1,0.0637515]
[1750771900174,9.06471,2409.2,2409.1,0.0637515]
[1750771900468,5.0,2409.2,2408.3,5.28283]
[1750771900674,3.2078,2409.0,2408.8,0.82981]
[1750771900871,3.2078,2409.3,2408.9,0.82981]
[1750771901171,3.2078,2409.6,2409.5,0.82961]
[1750771901373,3.2078,2410.0,2409.4,2.07411]
[1750771901567,0.82947,2409.9,2409.7,0.82952]
[1750771901768,0.82964,2409.4,2409.1,0.0637515]
[1750771902074,0.82966,2409.4,2409.1,0.8934815]
[1750771902274,3.2078,2409.4,2409.1,0.0637515]
[1750771902474,3.2078,2409.4,2409.3,0.82968]
[1750771902871,3.2078,2409.4,2409.1,0.0637515]
[1750771903070,3.2078,2409.4,2409.3,0.82968]
[1750771903368,3.2078,2409.7,2409.1,0.0637515]
[1750771903572,0.82948,2409.9,2409.1,0.0637515]
[1750771903774,3.2078,2409.9,2409.5,0.82957]
[1750771903968,0.82951,2409.8,2409.5,0.82957]
[1750771904169,3.2078,2409.6,2409.5,0.82957]
[1750771905269,10.14623598,2409.6,2409.1,0.0637515]
[1750771905475,3.2078,2409.3,2409.1,0.0637515]
[1750771905670,3.2078,2409.3,2409.2,0.82972]
[1750771905883,3.2078,2409.3,2409.1,0.8934815]
[1750771906079,4.03749,2409.3,2409.1,0.8934815]
[1750771906280,3.2078,2409.3,2409.1,0.8934815]
[1750771906576,3.2078,2409.3,2409.2,0.82972]
[1750771907581,3.2078,2409.3,2409.2,0.82971]
[1750771910376,3.2078,2409.7,2409.2,0.82971]
[1750771910584,4.03735,2409.7,2409.2,2.25091]
[1750771910884,4.6352,2409.7,2409.6,0.82958]
[1750771911485,3.2078,2409.7,2409.6,0.82958]
[1750771911682,4.5943,2410.1,2409.6,2.07395]
[1750771911881,3.2078,2410.1,2409.6,8.119]
[1750771912176,4.5943,2410.1,2410.0,0.82944]
[1750771912381,3.2078,2410.1,2410.0,0.82944]
[1750771913978,4.5731,2410.1,2409.7,8.119]
[1750771914182,1.3653,2410.1,2410.0,0.82944]
[1750771914378,4.5731,2410.1,2410.0,0.82944]
[1750771914586,0.82949,2409.9,2409.6,0.82956]
[1750771914780,3.2078,2409.7,2409.6,0.82956]
[1750771915190,4.5731,2409.7,2409.6,0.82956]
[1750771915494,3.2078,2410.0,2409.9,0.82947]
[1750771915794,3.2078,2410.3,2410.2,0.82937]
[1750771915992,3.2078,2410.7,2410.4,0.82928]
[1750771916278,3.2078,2410.7,2410.1,2.07352]
[1750771916279,1.3653,2410.6,2410.2,2.07343]
[1750771916484,1.3653,2410.6,2410.5,0.82927]
[1750771917480,1.3653,2410.6,2410.3,2.07334]
[1750771917481,3.2078,2410.8,2410.4,2.07323]
[1750771917682,3.2078,2410.8,2410.7,0.8292]
[1750771919191,1.0078,2411.1,2411.0,0.8291]
[1750771919192,3.2078,2411.1,2411.0,0.8291]
[1750771920479,3.2078,2411.5,2411.3,0.82898]
[1750771920685,3.2078,2411.5,2411.1,0.82906]
[1750771920686,0.829,2411.3,2411.1,0.82906]
[1750771920982,3.2078,2411.5,2411.1,0.82906]
[1750771920983,1.3428,2411.2,2411.1,0.82906]
[1750771921185,11.14403598,2411.6,2411.1,2.0726]
[1750771921382,11.14403598,2411.6,2411.2,2.07257]
[1750771921581,11.14403598,2411.6,2411.5,0.82892]
[1750771921787,4.2056,2411.6,2411.5,0.82892]
[1750771921981,3.2078,2411.6,2411.5,0.82892]
[1750771922183,4.03665,2411.7,2411.3,2.07249]
[1750771922385,0.8289,2411.6,2411.4,0.82895]
[1750771922689,3.2078,2411.5,2411.4,0.82895]
[1750771922886,1.3428,2411.6,2411.5,0.82892]
[1750771923090,0.82894,2411.5,2411.1,1.36]
[1750771923387,4.03674,2411.5,2411.3,0.82898]
[1750771923691,3.2078,2411.8,2411.2,2.07255]
[1750771923989,0.82886,2411.7,2411.6,0.82889]
[1750771924184,2.23736,2411.7,2411.6,0.82889]
[1750771924380,0.82889,2411.6,2411.4,0.82893]
[1750771924585,1.4085,2411.6,2411.5,0.82892]
[1750771924782,3.2078,2411.8,2411.7,0.82885]
[1750771924985,1.4085,2412.3,2412.2,0.82868]
[1750771925178,0.9127,2412.4,2411.9,2.07196]
[1750771925179,3.2078,2412.6,2412.5,0.82858]
[1750771925784,3.2078,2413.1,2413.0,0.82841]
[1750771926478,3.2078,2413.4,2413.3,0.82828]
[1750771926682,3.2078,2413.4,2412.8,1.3595]
[1750771926882,3.2078,2413.4,2412.9,8.114]
[1750771927091,3.2078,2413.4,2413.3,0.8283]
[1750771927283,3.2078,2413.4,2413.2,0.82833]
[1750771927491,3.2078,2413.4,2413.3,0.82831]
[1750771927889,0.82804,2414.1,2413.3,11.3218]
[1750771928086,3.2078,2414.3,2413.3,11.3218]
[1750771928087,4.6453,2414.3,2413.4,1.3595]
[1750771928291,3.2078,2414.6,2413.6,5.27826]
[1750771928591,4.6453,2414.6,2413.9,3.2078]
[1750771928785,11.58373598,2414.6,2413.9,3.2078]
[1750771928984,11.58373598,2414.6,2413.6,47.771]
[1750771928985,0.828,2414.2,2413.7,8.94216]
[1750771929181,1.4375,2414.6,2413.7,9.4753]
[1750771929395,3.2078,2414.7,2413.8,4.5691]
[1750771929787,3.2078,2414.3,2413.6,47.771]
[1750771929992,0.82817,2413.7,2413.6,47.771]
[1750771930181,3.2078,2413.9,2413.2,11.3188]
[1750771930387,3.2078,2413.4,2412.8,3.2078]
[1750771930785,0.82835,2413.2,2412.8,3.2078]
[1750771930991,1.4505,2413.3,2412.9,0.82843]
[1750771931296,0.82826,2413.5,2413.0,8.93939]
[1750771931486,0.82826,2413.5,2413.1,3.2078]
[1750771931683,0.82826,2413.5,2412.7,1.3613]
[1750771931684,3.2078,2413.4,2412.8,3.2078]
[1750771931890,3.2078,2413.4,2412.5,3.2078]
[1750771931891,3.2078,2413.1,2412.5,3.2078]
[1750771932092,3.2078,2412.7,2412.3,8.246]
[1750771932391,0.82861,2412.4,2412.3,8.246]
[1750771932693,3.2078,2412.4,2411.8,50.9628]
[1750771932897,3.2078,2412.1,2411.6,9.07486]
[1750771933098,3.2078,2412.1,2411.9,0.08292217]
[1750771933393,0.82863,2412.4,2412.0,0.82875]
[1750771933597,0.82866,2412.3,2412.0,8.246]
[1750771933797,1.3349,2412.3,2412.0,8.246]
[1750771933982,1.3349,2412.3,2412.0,9.07474]
[1750771934181,1.3349,2412.3,2412.0,8.246]
[1750771934388,3.2078,2413.1,2412.2,3.2078]
[1750771934595,0.82852,2412.7,2412.2,3.2078]
[1750771934893,0.82846,2412.9,2412.5,0.82856]
[1750771935090,4.5427,2412.8,2412.2,3.2078]
[1750771935296,0.82855,2412.6,2412.3,8.246]
[1750771935490,5.3712,2412.8,2412.2,3.2078]
[1750771935691,5.3712,2412.8,2412.3,9.07462]
[1750771935692,0.82851,2412.7,2412.3,9.07462]
[1750771935893,0.82856,2412.6,2412.3,9.07463]
[1750771936090,1.3814,2412.7,2412.4,0.8286]
[1750771936091,2.20992,2412.7,2412.4,0.8286]
[1750771936394,1.3814,2412.7,2412.6,0.82855]
[1750771936597,4.5892,2413.2,2412.5,2.07146]
[1750771936789,5.41755,2413.2,2412.9,0.82844]
[1750771937097,0.9313,2413.3,2413.2,0.82834]
[1750771937290,0.82814,2413.8,2413.5,0.82823]
[1750771937794,0.82825,2413.5,2413.2,9.07331]
[1750771937996,1.3814,2413.4,2413.3,0.82831]
[1750771938200,3.2078,2413.6,2413.5,0.82824]
[1750771938790,3.2078,2413.6,2413.4,0.82826]
[1750771938998,3.2078,2413.6,2413.5,0.82824]
[1750771939193,0.82811,2413.9,2413.5,0.82824]
[1750771939396,4.03602,2413.6,2413.0,4.2562]
[1750771939594,1.3156,2413.5,2413.0,8.245]
[1750771939801,3.2078,2413.3,2413.1,0.82837]
[1750771939993,4.03611,2413.3,2412.7,3.2078]
[1750771940295,10.14623598,2413.0,2412.5,0.82856]
[1750771940499,3.2078,2412.7,2412.1,11.4528]
[1750771940691,1.3156,2412.6,2412.1,8.245]
[1750771940998,2.14416,2412.6,2412.1,8.245]
[1750771941301,1.3156,2412.6,2412.5,0.82858]
[1750771941796,1.94537,2412.9,2412.6,0.82852]
[1750771942094,10.14623598,2413.6,2412.7,2.07129]
[1750771942396,0.82839,2413.1,2412.6,8.245]
[1750771942599,1.1395,2413.6,2412.7,2.07129]
[1750771942797,3.2078,2413.3,2413.1,0.82837]
[1750771943097,0.82841,2413.0,2412.9,3.2078]
[1750771943304,13.52388,2413.0,2411.9,5.27973]
[1750771943600,13.52388,2413.0,2412.2,0.82866]
[1750771943601,0.82858,2412.5,2412.2,0.82866]
[1750771943786,1.4191,2412.4,2412.3,0.82865]
[1750771944195,1.4191,2412.4,2412.2,0.82866]
[1750771944388,1.4191,2412.4,2411.9,5.27973]
[1750771944389,1.4191,2412.4,2412.3,0.82865]
[1750771944591,1.4191,2412.4,2411.9,3.2078]
[1750771944789,3.2078,2412.0,2411.3,3.2078]
[1750771944997,6.93843598,2411.6,2410.9,6.3714]
[1750771945297,7.76734598,2411.6,2411.4,0.82894]
[1750771945493,1.3644,2411.5,2411.0,2.07275]
[1750771945691,3.2078,2411.7,2411.0,1.4081]
[1750771945892,4.5722,2411.4,2411.1,0.82905]
[1750771946090,4.5722,2411.4,2411.3,0.82899]
[1750771946295,5.40117,2411.4,2411.0,8.245]
[1750771946501,5.40117,2411.4,2411.2,0.82901]
[1750771946695,0.82901,2411.3,2411.1,0.82905]
[1750771946904,1.3644,2411.2,2411.1,0.82905]
[1750771947201,0.82906,2411.1,2410.9,0.8291]
[1750771947387,0.82906,2411.1,2410.7,8.246]
[1750771947388,1.3447,2411.0,2410.7,8.246]
[1750771947595,1.3447,2411.0,2410.9,0.82913]
[1750771948197,11.4538,2411.8,2411.0,2.07275]
[1750771948402,5.69057566,2411.7,2411.0,2.07275]
[1750771948602,1.3447,2411.7,2411.6,0.82889]
[1750771949201,4.5525,2411.7,2411.6,0.82889]
[1750771949396,0.8289,2411.6,2411.4,0.82894]
[1750771949699,9.5525,2411.7,2410.7,8.246]
[1750771949700,9.5907,2411.5,2410.7,8.246]
[1750771949904,3.2078,2411.3,2411.2,0.82902]
[1750771950104,3.2078,2411.3,2411.1,0.82905]
[1750771950300,3.2078,2411.3,2410.7,9.6582]
[1750771950301,0.82909,2411.1,2410.7,8.246]
[1750771950506,3.53458953,2411.9,2411.4,0.82894]
[1750771950507,3.2078,2411.6,2411.4,0.82894]
[1750771950694,3.2078,2411.6,2411.1,8.247]
[1750771950900,0.82894,2411.5,2411.3,0.82898]
[1750771951199,2.23064,2411.5,2411.3,0.82898]
[1750771951397,0.82897,2411.4,2410.9,3.2078]
[1750771951592,0.82897,2411.4,2410.6,2.07302]
[1750771951593,3.2078,2411.0,2410.5,8.247]
[1750771951792,1.4017,2410.9,2410.4,3.2078]
[1750771952001,2.467,2410.9,2410.4,5.28103]
[1750771952196,2.467,2410.9,2410.8,0.82917]
[1750771952395,3.2078,2411.4,2410.9,0.82913]
[1750771952600,5.6748,2411.4,2411.1,0.82906]
[1750771952801,5.6748,2411.4,2411.0,0.82908]
[1750771953096,3.2078,2411.1,2411.0,0.8291]
[1750771953294,3.2078,2411.2,2411.1,0.82906]
[1750771953503,3.29598,2411.4,2410.7,5.28075]
[1750771953707,3.2078,2411.2,2410.7,5.28075]
[1750771953902,1.0653,2411.4,2410.8,2.07285]
[1750771954102,3.2078,2411.3,2411.2,0.82901]
[1750771954304,0.82907,2411.1,2411.0,0.82908]
[1750771954603,4.621,2411.3,2410.5,10.32114]
[1750771954604,0.82905,2411.2,2410.5,10.32114]
[1750771954797,0.82925,2410.6,2410.4,3.2078]
[1750771954998,0.82925,2410.6,2410.5,0.82927]
[1750771955193,1.4132,2410.9,2410.7,0.82917]
[1750771955400,1.4132,2410.9,2410.5,0.82927]
[1750771955401,0.82921,2410.7,2410.5,0.82927]
[1750771955606,1.4132,2410.9,2410.4,3.2078]
[1750771955808,2.24235,2410.9,2410.7,0.82918]
[1750771956103,0.82918,2410.8,2410.4,3.2078]
[1750771956301,0.82918,2410.8,2410.1,10.3215]
[1750771956302,3.2078,2410.6,2410.1,10.3215]
[1750771956505,3.2078,2410.6,2410.5,0.82927]
[1750771956701,3.2078,2410.6,2410.1,8.248]
[1750771956895,3.2078,2410.9,2410.5,2.07316]
[1750771957098,0.82918,2410.8,2410.4,2.07327]
[1750771957302,3.2078,2410.9,2410.2,3.44331]
[1750771957502,0.82924,2410.6,2410.5,0.82925]
[1750771957698,0.82923,2410.7,2410.6,0.82923]
[1750771957900,2.25889,2410.8,2410.7,0.8292]
[1750771958102,3.2078,2411.2,2410.5,3.2078]
[1750771958301,0.82918,2410.8,2410.4,2.07321]
[1750771958504,1.4297,2411.1,2410.6,2.07307]
[1750771958703,1.4297,2411.1,2411.0,0.8291]
[1750771958902,4.03685,2411.2,2411.1,0.82906]
[1750771959112,3.2078,2411.2,2411.1,0.82906]
[1750771959513,3.2078,2411.2,2411.0,0.82907]
[1750771959710,3.2078,2411.2,2410.7,3.4429]
[1750771959711,4.03686,2411.2,2411.1,0.82906]
[1750771960008,3.2078,2411.2,2411.1,0.82906]
[1750771960313,3.2078,2411.2,2410.8,0.82913]
[1750771960314,0.82914,2410.9,2410.8,0.82913]
[1750771960520,0.82919,2410.8,2410.7,0.82919]
[1750771960705,0.82923,2410.7,2410.6,0.82921]
[1750771961011,3.51067,2410.8,2410.1,1.0564]
[1750771961217,0.82937,2410.3,2410.2,0.82935]
[1750771961407,3.2078,2410.4,2410.1,0.82938]
[1750771961408,0.82939,2410.2,2410.1,0.82938]
[1750771961613,3.2078,2410.4,2410.0,8.25]
[1750771961814,5.28115,2410.4,2410.0,8.25]
[1750771962009,0.8294,2410.2,2410.1,0.82939]
[1750771962213,1.4377,2410.3,2410.0,8.25]
[1750771962410,1.4377,2410.3,2409.9,3.2078]
[1750771962612,5.28138,2410.1,2409.5,3.2078]
[1750771962806,3.2078,2409.7,2409.6,0.82958]
[1750771963015,0.82941,2410.1,2410.0,0.82943]
[1750771963215,11.5438,2410.3,2410.0,0.82943]
[1750771963216,0.8294,2410.2,2410.0,0.82943]
[1750771963515,0.82948,2409.9,2409.8,0.8295]
[1750771963711,12.37315,2410.3,2409.6,3.50512]
[1750771963912,12.37315,2410.3,2410.2,0.82937]
[1750771964213,12.37315,2410.3,2409.9,0.82945]
[1750771964214,3.2078,2410.3,2409.9,0.82945]
[1750771964417,3.2078,2410.3,2409.4,3.21617]
[1750771964418,3.2078,2410.0,2409.4,9.4781]
[1750771964716,4.5698,2409.9,2409.2,8.336]
[1750771965019,0.82962,2409.5,2409.3,0.82967]
[1750771965212,2.07404,2409.5,2409.0,1.118]
[1750771965418,0.82973,2409.2,2409.0,0.82977]
[1750771965716,3.2078,2409.3,2408.8,1.1421]
[1750771965921,1.1975,2409.7,2409.6,0.82958]
[1750771966212,31.5458,2409.9,2409.1,2.07434]
[1750771966407,31.5458,2409.9,2409.3,3.2078]
[1750771966408,32.9684,2409.9,2409.3,3.2078]
[1750771966608,3.2078,2409.6,2409.5,0.82961]
[1750771966803,4.6304,2409.9,2409.3,2.07421]
[1750771967014,4.6304,2409.9,2409.7,0.82952]
[1750771967220,6.70413,2409.9,2409.0,3.2078]
[1750771967416,4.03744,2409.5,2409.3,0.82967]
[1750771967616,3.2078,2409.8,2409.0,13.61923]
[1750771967818,4.03734,2409.8,2409.6,0.82957]
[1750771968013,4.03734,2409.8,2409.6,0.82956]
[1750771968216,4.03734,2409.8,2409.7,0.82954]
[1750771968217,3.2078,2409.8,2409.7,0.82954]
[1750771968511,0.82963,2409.5,2408.9,2.07455]
[1750771968718,0.82965,2409.4,2409.3,0.82966]
[1750771968918,1.3696,2409.4,2409.3,0.82966]
[1750771969106,2.19926,2409.4,2408.9,11.82135]
[1750771969309,5.40706,2409.4,2409.3,0.82968]
[1750771969509,10.41276,2409.9,2408.9,11.82135]
[1750771969510,4.03735,2409.7,2409.2,2.07426]
[1750771969718,0.82967,2409.4,2408.9,15.02915]
[1750771969914,0.82979,2409.0,2408.9,3.2078]
[1750771970516,0.83003,2408.3,2408.2,3.2078]
[1750771970813,0.83003,2408.3,2408.0,8.339]
[1750771970814,0.82998,2408.5,2407.9,6.49489]
[1750771971017,0.83004,2408.3,2407.9,1.2117]
[1750771971206,4.5774,2408.5,2408.1,0.83008]
[1750771971410,3.2078,2408.2,2408.1,0.83008]
[1750771971817,4.03786,2408.2,2408.1,0.83008]
[1750771972017,3.2078,2409.1,2408.1,5.0]
[1750771972221,3.2078,2409.0,2408.5,3.2078]
[1750771972420,0.82983,2408.9,2408.4,10.41499]
[1750771972620,3.2078,2409.0,2408.4,10.41499]
[1750771972621,4.03761,2409.0,2408.5,4.5499]